[Event "3rd VIZAG GM-Open 2022"]
[Site "Visakapatnam"]
[Date "2022.06.15"]
[Round "8.5"]
[White "Ilamparthi A R"]
[Black "Stupak, Kirill"]
[Result "0-1"]
[ECO "B10"]
[WhiteElo "2121"]
[BlackElo "2440"]
[Annotator "TA"]
[PlyCount "146"]
[EventDate "2022.06.13"]
[EventType "swiss"]
[EventCountry "IND"]
[SourceTitle "playchess.com"]
[Source "ChessBase"]
[SourceQuality "1"]
[TimeControl "5400+30"]

{[%evp 14,146,12,0,19,22,37,16,16,8,14,0,0,0,0,12,15,0,0,0,16,8,9,0,0,0,0,0,0,-7,0,-13,0,-32,-33,-33,-18,-22,-18,-143,-138,-286,-288,-296,-292,-292,-281,-245,-20,-23,-32,-22,-22,-24,-43,-29,-12,-12,-21,-19,-22,-150,-159,-158,-85,-153,-139,-318,-307,-369,-363,-297,-103,-1302,-1258,-1053,-880,-600,-465,-465,-10,-458,-458,-458,-458,-458,-458,-11253,-3787,-29940,-29942,-12686,-1357,-29941,-29943,-12785,-11928,-8262,-6520,-3768,-529,-29961,-29963,-29963,-29964,-29961,-29957,-29958,-29966,-29968,-29969,-29967,-29969,-29977,-29978,-29977,-29978,-29979,-29980,-29981,-29977,-29982,-29981,-29981,-29982,-29984,-29985,-29986,-29987,-29987,-29988,-29989,-29990,-29990,-29991]} 1. e4 {[%emt 0:00:11]} c6 {[%emt 0:00:28]} 2. d3 {[%emt 0:00:12]} d5 {[%emt 0:00:08]} 3. Nd2 {[%emt 0:00:05]} g6 {[%emt 0:00:05]} 4. g3 {[%emt 0:00:28]} Bg7 {[%emt 0:00:04]} 5. Bg2 {[%emt 0:00:04]} e5 {[%emt 0:00:08]} 6. Ngf3 {[%emt 0:00:54]} Ne7 {[%emt 0:00:02]} 7. O-O {[%emt 0:00:59]} O-O {[%emt 0:00:06]} 8. c3 {[%emt 0:03:58]} h6 {[%emt 0:10:43] B10: Caro-Kann: 2 d3 and 2 c4.} 9. Re1 {[%emt 0:02:04] [#]} dxe4 $146 {[%emt 0:02:47]} ({Predecessor:} 9... Qc7 10. d4 exd4 11. Nxd4 Nd7 12. Qe2 Nc5 13. exd5 Nxd5 14. N2b3 Ne6 15. Bxd5 cxd5 16. Be3 {1-0 (40) Vachier Lagrave,M (2703)-Vovk,Y (2539) Warsaw 2010}) 10. dxe4 {[%emt 0:04:27]} Be6 {[%emt 0:00:13] The position is equal.} 11. Qe2 {[%emt 0:04:42]} Nd7 {[%emt 0:02:23]} 12. Rd1 {[%emt 0:08:25]} Qc7 {[%emt 0:03:36]} 13. b3 {[%emt 0:00:49]} b5 {[%emt 0:07:29]} 14. Ba3 {[%emt 0:06:45]} Rfe8 {[%emt 0:00:18]} 15. Nf1 {[%emt 0:05:03]} a5 {[%emt 0:02:17]} 16. Ne3 {[%emt 0:03:14]} Nc8 {[%emt 0:04:54][%cal Be7c8,Bc8b6,Bb6d7,Bd7f6,Bf6e4,Be4f2][%mdl 32]} 17. h4 {[%emt 0:04:11][%cal Oh4h5]} Nf6 {[%emt 1:03:19]} 18. Qc2 {[%emt 0:00:30]} Ng4 {[%emt 0:00:30]} 19. Nxg4 {[%emt 0:01:25]} Bxg4 {[%emt 0:00:00]} 20. Bc5 {[%emt 0:02:00]} Nb6 {[%emt 0:00:00]} 21. Rd2 {[%emt 0:05:05]} a4 {[%emt 0:00:00]} 22. Rad1 {[%emt 0:01:52]} Qb7 {[%emt 0:00:00]} 23. Rd3 {[%emt 0:03:49]} axb3 {[%emt 0:00:00]} 24. axb3 {[%emt 0:00:15]} Nd7 {[%emt 0:00:00]} 25. Be3 {[%emt 0:00:57]} Bf8 {[%emt 0:00:00]} 26. Qd2 {[%emt 0:04:39]} (26. Rc1 $11) 26... Nf6 $17 {[%emt 0:00:00]} 27. Bxh6 {[%emt 0:00:32]} (27. Qc1 $17) 27... Nxe4 $19 {[%emt 0:00:00]} 28. Qe3 {[%emt 0:00:11] [#]} Nxf2 $1 {[%emt 0:00:00][%mdl 512]} 29. Kxf2 {[%emt 0:07:42] Bxf8 is the strong threat.} e4 {[%emt 0:00:00]} 30. Bxf8 {[%emt 0:00:16][%cal Oe3h6] Hoping for Qh6!} exf3 $2 {[%emt 0:00:00]} (30... exd3 $19 31. Qd4 Ra2+ 32. Kf1 (32. Rd2 $2 Re2+ 33. Kg1 Kxf8 $19) 32... Kxf8 33. Qh8+ Ke7 34. Qe5+ Kd8 35. Rxd3+ Bd7) 31. Qd4 $11 {[%emt 0:02:05][%csl Gf8][%cal Rd4g7]} Re2+ {[%emt 0:00:00]} 32. Kg1 {[%emt 0:02:10][%csl Gf8][%cal Rd4g7]} Rxg2+ {[%emt 0:00:00]} 33. Kh1 {[%emt 0:02:03][%csl Gf8][%cal Rd4g7]} Rxf8 {[%emt 0:00:00] The board is on fire.} (33... Kxf8 $2 34. Qf6 (34. Qxg4 c5 $17) (34. Qh8+ Ke7 $11) 34... Qc8 35. Rd8+ Qxd8 36. Rxd8+ Rxd8 37. Qxd8+ Kg7 38. Qd4+ Kg8 39. Qxg4 $18) 34. Qxg4 {[%emt 0:00:04]} c5 {[%emt 0:03:35]} 35. Qxf3 {[%emt 0:17:10]} (35. h5 {looks sharper.} Re2 36. Qxf3 Qxf3+ 37. Rxf3 gxh5 38. Rf5) 35... Qxf3 {[%emt 0:00:02]} 36. Rxf3 {[%emt 0:00:02][%mdl 4096] Endgame KRR-KRR} Rb2 {[%emt 0:00:01]} 37. Rd5 {[%emt 0:01:12]} (37. c4 $11 {keeps the balance.}) 37... Re8 $17 {[%emt 0:01:37]} 38. Kg1 {[%emt 0:01:45]} Re1+ $1 {[%emt 0:04:45]} ({Inferior is} 38... Rxb3 39. Rxc5 b4 40. Kg2 $11) 39. Rf1 {[%emt 0:00:01]} Ree2 {[%emt 0:00:00]} 40. Rf3 $2 {[%emt 0:01:02]} (40. Rc1 $17) 40... Rg2+ $1 $19 {[%emt 0:00:00]} ({Stronger than} 40... Rxb3 41. Rxc5 Rb1+ 42. Rf1 $17) 41. Kh1 {[%emt 0:00:12]} Rgc2 {[%emt 0:00:22]} 42. Kg1 {[%emt 0:01:43]} b4 $2 {[%emt 0:00:52]} ({Weaker is} 42... Rxb3 43. Rxc5 Rb1+ 44. Rf1 $17) (42... Rc1+ $19 {and Black stays clearly on top.} 43. Rf1 Rxc3) 43. Rxc5 $2 {[%emt 0:03:44][%mdl 8192]} (43. Rd8+ $17 Kg7 44. cxb4) 43... bxc3 {[%emt 0:00:13]} 44. Rc8+ {[%emt 0:01:31]} Kg7 {[%emt 0:00:05]} 45. Rc7 {[%emt 0:00:04]} Rc1+ {[%emt 0:01:10]} 46. Rf1 {[%emt 0:00:01]} Rxf1+ {[%emt 0:00:20]} 47. Kxf1 {[%emt 0:00:01] KR-KR} c2 $1 {[%emt 0:00:50]} 48. Ke1 {[%emt 0:00:01][%cal Ob3b4] [#]} Rb1+ $1 {[%emt 0:00:16]} 49. Kd2 {[%emt 0:00:01]} Rxb3 {[%emt 0:00:06]} 50. Rxc2 {[%emt 0:03:07]} (50. g4 $142 Rb4 51. g5) 50... Rxg3 {[%emt 0:00:02] ( -> ...Rg2+)} 51. Rc4 {[%emt 0:00:01] [#]} Kh6 $1 {[%emt 0:00:56]} 52. Ke2 {[%emt 0:00:01]} Kh5 {[%emt 0:00:19]} (52... Rh3 $142 53. Kf2 f5) 53. Kf2 {[%emt 0:01:10]} Ra3 {[%emt 0:00:39]} 54. Rc7 {[%emt 0:01:26]} f5 {[%emt 0:00:07]} 55. Rh7+ {[%emt 0:00:08]} Kg4 {[%emt 0:00:01]} 56. Rh6 {[%emt 0:00:09]} Ra2+ {[%emt 0:01:11]} 57. Kg1 {[%emt 0:00:39]} Ra6 {[%emt 0:00:21] Black mates.} 58. h5 {[%emt 0:00:07]} Ra1+ {[%emt 0:00:06]} 59. Kf2 {[%emt 0:00:54]} Ra2+ {[%emt 0:00:03]} 60. Ke3 {[%emt 0:00:59]} f4+ {[%emt 0:00:17]} 61. Ke4 {[%emt 0:00:24]} Re2+ {[%emt 0:01:28]} 62. Kd3 {[%emt 0:00:05]} Re3+ {[%emt 0:00:11]} 63. Kd2 {[%emt 0:00:05]} gxh5 {[%emt 0:00:17]} 64. Rg6+ {[%emt 0:00:04]} Kf3 {[%emt 0:00:12]} 65. Rh6 {[%emt 0:00:06]} Re5 {[%emt 0:00:04]} 66. Rh7 {[%emt 0:00:06]} Kf2 {[%emt 0:00:09]} 67. Rf7 {[%emt 0:00:04]} Rd5+ {[%emt 0:00:04]} 68. Kc3 {[%emt 0:00:06]} f3 {[%emt 0:00:03][%cal Bf4f3,Bf3f2][%mdl 32]} 69. Kc2 {[%emt 0:00:05]} h4 {[%emt 0:00:24][%cal Bh5h4,Bh4h3][%mdl 32]} 70. Rf8 {[%emt 0:00:09]} Rg5 {[%emt 0:00:11]} 71. Kd2 {[%emt 0:00:04]} h3 {[%emt 0:00:04]} 72. Rh8 {[%emt 0:00:03]} Kg2 {[%emt 0:00:05]} 73. Ke3 {[%emt 0:00:03]} f2 {[%emt 0:00:07] Weighted Error Value: White=0.86/Black=0.28 (precise)} 0-1

[Event "3rd VIZAG GM-Open 2022"]
[Site "Visakapatnam"]
[Date "2022.06.15"]
[Round "8.6"]
[White "Fedorov, Alexei"]
[Black "Aaryan Varshney"]
[Result "1/2-1/2"]
[ECO "A08"]
[WhiteElo "2529"]
[BlackElo "2308"]
[Annotator "TA"]
[PlyCount "74"]
[EventDate "2022.06.13"]
[EventType "swiss"]
[EventCountry "IND"]
[SourceTitle "playchess.com"]
[Source "ChessBase"]
[SourceQuality "1"]
[TimeControl "5400+30"]

{[%evp 15,74,-26,-26,-101,-58,-62,-55,-65,-62,-68,-56,-64,-68,-75,-62,-62,-56,-54,-53,-53,-49,-61,-8,-19,-12,-12,-16,-24,0,-50,-5,-6,0,0,0,0,0,0,31,33,52,31,37,27,31,0,0,0,0,-60,-43,-64,8,-92,0,0,0,-56,0,0,0]} 1. e4 {[%emt 0:00:03]} c5 {[%emt 0:08:44]} 2. d3 {[%emt 0:00:08]} Nc6 {[%emt 0:00:17]} 3. g3 {[%emt 0:00:30]} d5 {[%emt 0:00:05]} 4. Nd2 {[%emt 0:00:15]} Nf6 {[%emt 0:00:10][%cal Bg8f6,Bf6e8,Be8d6][%mdl 32]} 5. Bg2 {[%emt 0:00:29]} e5 {[%emt 0:01:21]} 6. Ngf3 {[%emt 0:00:59]} Be7 {[%emt 0:00:12]} 7. O-O {[%emt 0:00:09]} O-O {[%emt 0:00:03]} 8. c3 {[%emt 0:02:41]} d4 {[%emt 0:00:24]} 9. c4 {[%emt 0:09:36] A08: King's Indian Attack.} (9. Nc4 $11) 9... Ne8 {[%emt 0:10:26]} 10. Ne1 {[%emt 0:03:08]} Nd6 {[%emt 1:13:48] [#]} 11. Nb3 $146 {[%emt 0:05:34] Black is slightly better.} ({Predecessor:} 11. f4 a6 12. Ndf3 exf4 13. gxf4 f5 14. e5 Nf7 15. Bd2 h6 16. Nc2 Be6 17. Rb1 {½-½ (43) Kuzmicz,K (2461)-Huschenbeth,N (2620) Katowice 2019}) 11... b6 {[%emt 0:00:00]} 12. f4 {[%emt 0:01:03]} a6 {[%emt 0:00:00]} 13. Nf3 {[%emt 0:04:09]} f6 {[%emt 0:00:00]} 14. f5 {[%emt 0:01:05]} Nf7 {[%emt 0:00:00]} 15. Nbd2 {[%emt 0:12:04]} b5 {[%emt 0:00:00]} 16. g4 {[%emt 0:06:41]} Nd6 {[%emt 0:00:00]} 17. b3 {[%emt 0:00:13]} Nb4 {[%emt 0:00:00]} 18. Ne1 {[%emt 0:00:15]} bxc4 {[%emt 0:00:00]} (18... a5 $15) 19. bxc4 {[%emt 0:00:38]} Bd7 {[%emt 0:00:00]} 20. h4 {[%emt 0:06:12]} Nf7 {[%emt 0:00:00]} 21. Rf3 {[%emt 0:00:44]} Qa5 {[%emt 0:00:00]} 22. a4 {[%emt 0:02:34]} (22. a3 $11 Nc6 23. Nb3) 22... Rab8 {[%emt 0:00:00][%cal Ba8b8,Bb8b7,Bb7b2][%mdl 32]} 23. Rg3 {[%emt 0:00:38]} g5 {[%emt 0:00:00]} 24. Rh3 {[%emt 0:14:13]} h6 {[%emt 0:00:00]} 25. Nf1 {[%emt 0:00:24]} Nd6 {[%emt 0:00:00]} 26. Nf3 {[%emt 0:03:16]} Nf7 {[%emt 0:00:00]} 27. Ng3 {[%emt 0:00:40]} Rb7 {[%emt 0:00:00]} 28. Bf1 {[%emt 0:01:30]} Rfb8 {[%emt 0:00:00]} 29. Qe2 {[%emt 0:09:48]} Nc6 {[%emt 0:00:00]} 30. Bd2 {[%emt 0:02:56] Against Qc3} Qd8 {[%emt 0:00:37]} 31. Qh2 {[%emt 0:01:10]} Bf8 {[%emt 0:01:36]} 32. Nh5 {[%emt 0:01:05]} (32. hxg5 $11 fxg5 33. Bc1) 32... Rb2 $15 {[%emt 0:00:51]} 33. Be2 {[%emt 0:01:26]} Nb4 {[%emt 0:01:40]} (33... Rb1+ $15 34. Rxb1 Rxb1+ 35. Bf1 Be8 36. hxg5 hxg5) 34. Rf1 {[%emt 0:07:42]} (34. hxg5 $1 $11 {remains equal.} fxg5 35. Bf1) 34... Bd6 {[%emt 0:04:04]} 35. Ng3 {[%emt 0:01:11]} Bf8 $1 {[%emt 0:00:43]} (35... Bxa4 $2 36. hxg5 Rxd2 37. g6 Rxe2 38. Nxe2 $18) 36. Nh5 {[%emt 0:00:35]} Bd6 {[%emt 0:00:08]} (36... Bxa4 $15 37. Ra1 Na2 38. hxg5 fxg5) 37. Ng3 $11 {[%emt 0:01:10] [#] Black must now prevent hxg5.} Bf8 {[%emt 0:00:05] Weighted Error Value: White=0.17 (very precise) /Black=0.18 (very precise)} (37... Bxa4 $2 38. hxg5 Rxd2 39. g6 Rxe2 40. Nxe2 $18) 1/2-1/2

[Event "3rd VIZAG GM-Open 2022"]
[Site "Visakapatnam"]
[Date "2022.06.15"]
[Round "8.7"]
[White "Konguvel, Ponnuswamy"]
[Black "Mitrabha, Guha"]
[Result "0-1"]
[ECO "C63"]
[WhiteElo "2331"]
[BlackElo "2500"]
[Annotator "TA"]
[PlyCount "113"]
[EventDate "2022.06.13"]
[EventType "swiss"]
[EventCountry "IND"]
[SourceTitle "playchess.com"]
[Source "ChessBase"]
[SourceQuality "1"]
[TimeControl "5400+30"]

{[%evp 16,113,41,48,44,57,22,25,37,54,47,41,49,30,31,0,0,0,-7,-46,-53,-34,-41,-104,-92,-96,-96,-102,-92,-97,-104,-97,-102,-109,-97,-102,-72,-79,-56,-103,-92,-88,-97,-98,-82,-81,-88,-81,-13,-21,-14,-14,-8,-8,-8,-8,-8,-8,-8,-8,-8,-14,-8,-8,-8,-8,-8,-8,-8,-8,-8,-8,-9,-25,-8,-8,0,-41,0,-8,0,-8,-8,-8,-8,-8,0,-497,-131,-1250,-1560,-1191,-1135,-1945,-2355,-29958,-12837,-12351,-4618,-4618]} 1. e4 {[%emt 1:31:00]} e5 {[%emt 0:09:18]} 2. Nf3 {[%emt 0:00:00]} Nc6 {[%emt 0:00:07]} 3. Bb5 {[%emt 0:00:00]} f5 {[%emt 0:00:08]} 4. d3 {[%emt 0:00:00]} fxe4 {[%emt 0:00:07]} 5. dxe4 {[%emt 0:00:00]} Nf6 {[%emt 0:00:04]} 6. O-O {[%emt 0:00:00]} Bc5 {[%emt 0:00:07]} 7. Bxc6 {[%emt 0:00:00]} bxc6 {[%emt 0:00:07]} 8. Nxe5 {[%emt 0:00:00]} O-O {[%emt 0:00:09]} 9. Nc3 {[%emt 0:00:00]} d6 {[%emt 0:00:17] C63: Ruy Lopez: Schliemann/Jaenisch Defence.} 10. Na4 {[%emt 0:00:00]} Qe8 {[%emt 0:00:02]} 11. Nd3 {[%emt 0:00:00] Pair of Knights!} Bg4 {[%emt 0:00:02] White has an edge.} 12. Qe1 {[%emt 0:00:00]} Bd4 {[%emt 0:00:03]} ({Less strong is} 12... Qxe4 13. Naxc5 Qxe1 14. Rxe1 $16) 13. c3 $1 {[%emt 0:00:00]} Bb6 {[%emt 0:01:07]} 14. Nxb6 {[%emt 0:00:00]} axb6 {[%emt 0:00:02] [#]} 15. Bf4 $146 {[%emt 0:00:00]} ({Predecessor:} 15. c4 Be6 16. b3 b5 17. cxb5 Bxb3 18. Qc3 Ba4 19. bxc6 Qxe4 20. Nb4 Rab8 21. Bd2 {½-½ (51) Harikrishna,P (2729)-Nihal,S (2576) Kolkata 2018}) 15... Bc8 $36 {[%emt 0:19:14][%cal Bg4c8,Bc8a6,Ba6c4][%mdl 2080] Black has good play.} ({But not} 15... Qxe4 16. Qxe4 Nxe4 17. f3 $16) ({Resist} 15... Nxe4 16. f3 Nc5 17. Qxe8 Raxe8 18. Nxc5 $16) 16. f3 {[%emt 0:00:00]} Ba6 {[%emt 0:00:13]} 17. Qd2 {[%emt 0:00:00]} Nd7 {[%emt 0:01:10]} 18. Bg3 {[%emt 0:00:00]} Nc5 {[%emt 0:00:52]} 19. c4 {[%emt 0:00:00]} (19. Nb4 $15) 19... Bxc4 $17 {[%emt 0:00:31][%mdl 64] Discovered Attack, Double Attack} 20. Rfc1 {[%emt 0:00:00]} Bxd3 {[%emt 0:00:26]} 21. b4 {[%emt 0:00:00] [#]} Nxe4 {[%emt 0:01:03]} 22. Qxd3 {[%emt 0:00:00] Re1 is the strong threat.} Nxg3 {[%emt 0:00:07]} 23. hxg3 {[%emt 0:00:00]} c5 {[%emt 0:00:11]} 24. a4 {[%emt 0:00:00]} Qe5 {[%emt 0:03:20]} 25. f4 {[%emt 0:00:00]} Qf5 {[%emt 0:00:43]} 26. Qf3 {[%emt 0:00:00]} Ra7 {[%emt 0:00:30]} 27. a5 {[%emt 0:00:00]} (27. bxc5 $15 {should be considered.} dxc5 28. a5) 27... cxb4 {[%emt 0:01:13]} 28. axb6 {[%emt 0:00:00]} Rxa1 {[%emt 0:00:10]} 29. Rxa1 {[%emt 0:00:00][%mdl 4096] Endgame KQR-KQR} Qc5+ {[%emt 0:00:15]} 30. Kh2 {[%emt 0:00:00]} cxb6 {[%emt 0:05:08]} (30... Qxb6 $2 31. Qd5+ Kh8 32. Ra8 $18) 31. Ra7 {[%emt 0:00:00]} Qd4 {[%emt 0:10:34]} (31... h6 $1 $17) 32. Rd7 $11 {[%emt 0:01:46]} h6 {[%emt 0:11:59]} 33. Qb3+ {[%emt 0:00:30]} Kh8 {[%emt 0:00:08]} 34. Qe6 {[%emt 0:00:49]} Qf6 {[%emt 0:03:32]} 35. Rxd6 {[%emt 0:04:02]} Qxe6 {[%emt 0:01:01]} 36. Rxe6 {[%emt 0:10:23] KR-KR} Rb8 {[%emt 0:00:07]} 37. Re4 {[%emt 0:00:00]} b3 {[%emt 0:00:02]} 38. Rb4 {[%emt 0:00:00]} b5 {[%emt 0:00:03]} 39. g4 {[%emt 0:00:00]} Kg8 {[%emt 0:00:18]} 40. Kg3 {[%emt 0:00:00]} Kf7 {[%emt 0:00:44] Strongly threatening ...Ke6.} 41. Kf3 {[%emt 0:00:00]} Ke6 {[%emt 0:35:46] Hoping for ...Kd5.} 42. Ke4 {[%emt 0:00:00]} Kd6 {[%emt 0:00:00] aiming for ...Kc5.} 43. Kd4 {[%emt 0:00:00]} Kc6 {[%emt 0:00:00] White should prevent ...Ra8.} 44. Rxb3 {[%emt 0:04:00]} Re8 {[%emt 0:00:00]} 45. f5 {[%emt 0:00:00]} Re2 {[%emt 0:00:00]} 46. g3 {[%emt 0:00:00]} Rc2 {[%emt 0:00:00]} (46... Ra2 $5 {[%cal Ra2a4]}) 47. Rf3 {[%emt 0:00:00]} Kb6 {[%emt 0:00:00]} 48. f6 {[%emt 0:00:00]} gxf6 {[%emt 0:00:00]} 49. Rxf6+ {[%emt 0:00:00]} Rc6 {[%emt 0:00:00]} 50. Rf8 {[%emt 0:02:06]} Ka5 {[%emt 0:00:00] And now ...b4 would win.} 51. Kd5 $2 {[%emt 0:00:42][%mdl 8192] [#]} (51. Rg8 $11) 51... Rc3 $2 {[%emt 0:00:00]} (51... Rg6 $1 $19 {[%cal Rg6g4] is more deadly.} 52. Rf4 b4) 52. Rh8 $2 {[%emt 0:00:26][%mdl 8192] Loses the game.} (52. Kd4 $17 Rc4+ 53. Kd3) 52... Rxg3 $19 {[%emt 0:00:00]} 53. Kc5 {[%emt 0:00:45]} Rc3+ {[%emt 0:00:00]} 54. Kd5 {[%emt 0:00:03] [#]} Rc4 $1 {[%emt 0:00:00]} 55. Rxh6 {[%emt 0:00:26]} Rxg4 {[%emt 0:00:00] ( -> ...b4)} 56. Rh8 {[%emt 0:00:47]} b4 {[%emt 0:00:00] White must now prevent ...Kb5.} 57. Rb8 {[%emt 0:01:15] Weighted Error Value: White=0.56/Black=0.20 (precise)} 0-1

[Event "3rd VIZAG GM-Open 2022"]
[Site "Visakapatnam"]
[Date "2022.06.15"]
[Round "8.8"]
[White "Velpula Sarayu"]
[Black "Nigmatov, Ortik"]
[Result "1/2-1/2"]
[ECO "B23"]
[WhiteElo "1845"]
[BlackElo "2463"]
[Annotator "TA"]
[PlyCount "96"]
[EventDate "2022.06.13"]
[EventType "swiss"]
[EventCountry "IND"]
[SourceTitle "playchess.com"]
[Source "ChessBase"]
[SourceQuality "1"]
[TimeControl "5400+30"]

{[%evp 9,96,6,2,-2,0,0,0,0,3,5,7,6,21,0,0,0,20,-19,-16,-19,-10,-22,25,19,27,32,33,35,21,33,56,31,22,31,100,73,106,56,92,101,93,76,77,94,80,79,77,72,116,94,50,27,325,271,270,262,256,267,259,262,264,254,254,218,205,216,282,271,429,426,393,344,327,331,334,298,264,122,318,320,273,166,338,327,325,125,293,287,300]} 1. e4 {[%emt 0:00:21]} c5 {[%emt 0:00:07]} 2. Nc3 {[%emt 0:00:25]} d6 {[%emt 0:00:06]} 3. d4 {[%emt 0:00:30]} cxd4 {[%emt 0:00:06]} 4. Qxd4 {[%emt 0:00:37]} Nc6 {[%emt 0:00:04]} 5. Qd2 {[%emt 0:00:35]} g6 {[%emt 0:01:40]} 6. b3 {[%emt 0:00:29] B23: Closed Sicilian: Lines without g3.} Bh6 {[%emt 0:00:28]} 7. f4 {[%emt 0:00:35]} Nf6 {[%emt 0:04:07]} 8. Bb2 {[%emt 0:00:38] The position is equal.} e5 {[%emt 0:00:13]} 9. g3 {[%emt 0:02:19][%cal Bg2g3,Bg3f4][%mdl 32]} O-O {[%emt 0:00:08]} 10. O-O-O {[%emt 0:00:45]} a5 {[%emt 0:00:33][%cal Oa5a4]} 11. a4 {[%emt 0:02:08]} exf4 {[%emt 0:00:08]} 12. gxf4 {[%emt 0:01:30]} Nh5 {[%emt 0:00:06] [#]} 13. Nd5 $146 {[%emt 0:06:43]} (13. Nge2 $5 {[%cal Rc1b1]}) ({Predecessor:} 13. Nge2 Qh4 14. Nd5 Be6 15. Kb1 Bxd5 16. exd5 Ne5 17. Qd4 Nxf4 18. Qb6 Qe7 19. Ng3 {1-0 (54) Deepan Chakkravarthy,J (2534)-Yilmaz,M (2636) Dubai 2019}) 13... Be6 {[%emt 0:03:32] And now ...Bxd5 would win.} 14. Kb1 {[%emt 0:01:56]} (14. Qc3 Ne5 15. Nh3 Rc8 $11) 14... Bxd5 {[%emt 0:04:17]} 15. exd5 {[%emt 0:00:20]} Ne5 {[%emt 0:08:16]} 16. Be2 $11 {[%emt 0:04:12] Threatens to win with Bxh5. A strong pair of Bishops.} Nxf4 {[%emt 0:05:22]} 17. h4 {[%emt 0:00:47][%cal Bh2h4,Bh4h5][%mdl 32]} Qf6 {[%emt 0:19:21]} 18. Rf1 {[%emt 0:17:16]} Nxe2 {[%emt 0:09:50]} 19. Qxe2 {[%emt 0:00:09]} Qe7 {[%emt 0:01:44]} 20. Nf3 {[%emt 0:14:04][%cal Bg1f3,Bf3d4,Bd4f5][%mdl 1056] White has compensation.} (20. h5 $5 {[%cal Rh5g6]} Bg7 21. Nh3 $11) 20... Bg7 {[%emt 0:00:16]} 21. h5 {[%emt 0:03:06]} Rae8 {[%emt 0:04:36]} (21... b5 $1 $14) 22. Nd4 {[%emt 0:06:29]} Nd7 {[%emt 0:09:38]} 23. Qh2 {[%emt 0:04:12]} (23. Qg2 $16) 23... Be5 {[%emt 0:01:18]} 24. Qg2 {[%emt 0:02:29] Black must now prevent Nf5.} Kh8 {[%emt 0:12:51]} 25. Rf3 {[%emt 0:10:05] hxg6 is the strong threat.} g5 {[%emt 0:02:42]} 26. Nf5 $36 {[%emt 0:03:18][%mdl 2048] Keeping Black busy.} Qf6 {[%emt 0:00:07]} 27. Bc1 {[%emt 0:00:33] White is much more active.} h6 {[%emt 0:01:15][%cal Ob7b5]} 28. Rhf1 {[%emt 0:04:20]} Nc5 {[%emt 0:01:54]} 29. Qg4 {[%emt 0:00:21]} b6 {[%emt 0:03:54]} 30. Qc4 {[%emt 0:01:32]} Bf4 $2 {[%emt 0:02:03][%mdl 8192] White stays focused until the end.} (30... Kh7 $11 {and Black has nothing to worry.}) 31. Rxf4 {[%emt 0:03:30]} gxf4 {[%emt 0:00:01]} 32. Bb2 {[%emt 0:00:01]} (32. Qxf4 Re2 $14) 32... Re5 {[%emt 0:00:08]} 33. Qxf4 {[%emt 0:00:13][%cal Of5d6][%mdl 64] Hoping for Nxd6! Pin} Kh7 {[%emt 0:00:29]} 34. Bxe5 {[%emt 0:04:04]} dxe5 {[%emt 0:00:35]} 35. Qf3 {[%emt 0:00:08]} Rg8 {[%emt 0:02:15]} 36. Ne3 {[%emt 0:00:50]} Qxf3 {[%emt 0:00:13]} 37. Rxf3 $18 {[%emt 0:00:04][%mdl 4096] Endgame KRN-KRN} Rg7 {[%emt 0:00:48]} 38. Rf6 {[%emt 0:01:26]} Ne4 {[%emt 0:02:22]} (38... Rg5 {was worth a try.} 39. Rxf7+ Kg8) 39. Rxb6 {[%emt 0:00:19]} Rg3 {[%emt 0:00:36]} 40. Nf5 {[%emt 0:00:27]} Rf3 {[%emt 0:00:05]} 41. Rxh6+ {[%emt 0:02:21]} Kg8 {[%emt 0:00:21]} 42. Ne7+ {[%emt 0:00:51]} Kf8 {[%emt 0:00:01] [#]} 43. Nc8 {[%emt 0:01:16]} ({Worse is} 43. Nc6 Kg7 44. d6 Rf1+ 45. Kb2 Rd1 $14) (43. d6 $1 $18 {is the precise move to win. Strongly threatening Rh8+.} Nxd6 44. Nd5 (44. Rxd6 Kxe7 45. Rd5 Ke6 $16)) 43... Nc3+ $2 {[%emt 0:00:16]} (43... Rf1+ $16 {might work better.} 44. Kb2 Nf6) 44. Kb2 {[%emt 0:00:06]} Nxd5 {[%emt 0:00:03]} 45. Rd6 {[%emt 0:00:22]} Nf4 {[%emt 0:00:50]} (45... Ne3 46. h6 Kg8) 46. h6 {[%emt 0:00:32][%cal Rd6d8]} Kg8 {[%emt 0:00:01]} 47. Rd8+ {[%emt 0:01:04]} ({Don't do} 47. Ra6 e4 $18) 47... Kh7 {[%emt 0:00:01] [#]} 48. Nd6 $1 {[%emt 0:00:07]} f6 {[%emt 0:01:10][%mdl 32768] Weighted Error Value: White=0.17 (very precise) /Black=0.34. An unexpected result.} 1/2-1/2